[Event "57th Biel Festival ATO 2024"]
[Site "Biel"]
[Date "2024.07.16"]
[Round "1.1"]
[White "Nasybullina, Alfia"]
[Black "Hansen, Michael Bo"]
[Result "1-0"]
[ECO "D03"]
[WhiteElo "1997"]
[BlackElo "1759"]
[Annotator "RC"]
[PlyCount "39"]
[EventDate "2024.07.03"]
[EventType "swiss"]
[EventCountry "SUI"]
[SourceTitle "playchess.com"]
[Source "ChessBase"]
[SourceQuality "1"]
[TimeControl "40/5400+30:1800+30"]

1. d4 {[%emt 0:00:04]} Nf6 {[%emt 0:00:20]} 2. Nf3 {[%emt 0:00:08]} g6 {[%emt 0:00:58]} 3. Bg5 {[%emt 0:00:07]} Bg7 {[%emt 0:00:28]} 4. Nbd2 {[%emt 0:00:09]} d5 {[%emt 0:01:46]} 5. e3 {[%emt 0:00:44]} O-O {[%emt 0:03:29]} 6. Bd3 {[%emt 0:01:35]} c5 {[%emt 0:04:36]} 7. c3 {[%emt 0:01:31]} cxd4 {[%emt 0:01:21]} 8. exd4 {[%emt 0:00:15]} Nc6 {[%emt 0:01:21]} 9. h3 {[%emt 0:02:17]} Re8 {[%emt 0:01:54]} 10. O-O {[%emt 0:00:17]} Qc7 {[%emt 0:11:27]} 11. Re1 {[%emt 0:03:32]} e5 {[%emt 0:01:09]} 12. dxe5 {[%emt 0:00:10]} Nxe5 {[%emt 0:00:32]} 13. Bf4 {[%emt 0:05:17]} Nfd7 {[%emt 0:12:20]} 14. Bb5 {[%emt 0:04:36]} a6 {[%emt 0:03:15]} 15. Nxe5 {[%emt 0:02:22]} Bxe5 {[%emt 0:02:25]} 16. Bf1 {[%emt 0:03:02]} Nf6 {[%emt 0:05:44]} 17. Rxe5 {[%emt 0:01:09]} Rxe5 {[%emt 0:03:52]} 18. Nf3 {[%emt 0:00:56]} Nd7 {[%emt 0:00:13]} 19. Nxe5 {[%emt 0:00:20]} Nxe5 {[%emt 0:00:09]} 20. Qxd5 {[%emt 0:00:24]} 1-0

[Event "57th Biel Festival ATO 2024"]
[Site "Biel"]
[Date "2024.07.16"]
[Round "1.2"]
[White "Loeffler, Helmut"]
[Black "Wiesmann, Dominique"]
[Result "0-1"]
[ECO "A41"]
[WhiteElo "1745"]
[BlackElo "1963"]
[Annotator "RC"]
[PlyCount "78"]
[EventDate "2024.07.03"]
[EventType "swiss"]
[EventCountry "SUI"]
[SourceTitle "playchess.com"]
[Source "ChessBase"]
[SourceQuality "1"]
[TimeControl "40/5400+30:1800+30"]

1. d4 {[%emt 0:00:05]} d6 {[%emt 0:00:18]} 2. Nf3 {[%emt 0:00:13]} Bg4 {[%emt 0:00:08]} 3. e3 {[%emt 0:00:15]} Nf6 {[%emt 0:00:40]} 4. Bd3 {[%emt 0:00:24]} Nc6 {[%emt 0:01:28]} 5. c3 {[%emt 0:01:01]} e5 {[%emt 0:04:12]} 6. dxe5 {[%emt 0:02:16]} dxe5 {[%emt 0:00:13]} 7. Be2 {[%emt 0:01:36]} Bd6 {[%emt 0:02:56]} 8. Nbd2 {[%emt 0:02:55]} Qe7 {[%emt 0:00:58]} 9. e4 {[%emt 0:02:06]} O-O {[%emt 0:02:19]} 10. O-O {[%emt 0:00:52]} Bc5 {[%emt 0:07:43]} 11. b4 {[%emt 0:05:43]} Bb6 {[%emt 0:02:35]} 12. Bb2 {[%emt 0:04:02]} Bxf3 {[%emt 0:03:28]} 13. Bxf3 {[%emt 0:00:58]} Nd7 {[%emt 0:05:47]} 14. Nc4 {[%emt 0:03:53]} Nd8 {[%emt 0:05:00]} 15. Qe2 {[%emt 0:12:04]} Ne6 {[%emt 0:01:05]} 16. g3 {[%emt 0:02:28]} c6 {[%emt 0:02:04]} 17. Rad1 {[%emt 0:01:23]} Bc7 {[%emt 0:01:22]} 18. Ne3 {[%emt 0:02:12]} g6 {[%emt 0:02:16]} 19. Rd2 {[%emt 0:02:42]} Nf6 {[%emt 0:03:03]} 20. Rfd1 {[%emt 0:06:38]} Rfd8 {[%emt 0:02:15]} 21. a3 {[%emt 0:00:56]} h5 {[%emt 0:01:54]} 22. Bg2 {[%emt 0:06:27]} Ng5 {[%emt 0:02:17]} 23. f3 {[%emt 0:03:25]} b5 {[%emt 0:06:29]} 24. Kh1 {[%emt 0:01:22]} a6 {[%emt 0:00:14]} 25. c4 {[%emt 0:04:42]} Nd7 {[%emt 0:06:04]} 26. c5 {[%emt 0:02:54]} Nf8 {[%emt 0:00:06]} 27. h4 {[%emt 0:03:43]} Nge6 {[%emt 0:00:30]} 28. Bh3 {[%emt 0:00:54]} Nd4 {[%emt 0:02:34]} 29. Qf2 {[%emt 0:01:26]} Nfe6 {[%emt 0:00:45]} 30. Bxe6 {[%emt 0:01:11]} Nxe6 {[%emt 0:04:15]} 31. Ng2 {[%emt 0:02:15]} a5 {[%emt 0:01:50]} 32. Qe3 {[%emt 0:00:53]} Kh7 {[%emt 0:01:03]} 33. Bc1 {[%emt 0:01:32]} axb4 {[%emt 0:05:24]} 34. axb4 {[%emt 0:01:50]} Rxd2 {[%emt 0:03:29]} 35. Bxd2 {[%emt 0:02:27]} Nd4 {[%emt 0:03:17]} 36. Qh6+ {[%emt 0:00:53]} Kg8 {[%emt 0:00:02]} 37. Bg5 {[%emt 0:00:33]} Qe6 {[%emt 0:08:42]} 38. g4 {[%emt 0:08:59]} Nxf3 {[%emt 0:03:41]} 39. Ne3 {[%emt 0:01:22]} Ra2 {[%emt 0:00:42]} 0-1

[Event "57th Biel Festival ATO 2024"]
[Site "Biel"]
[Date "2024.07.16"]
[Round "1.3"]
[White "Kulikov, Mikhail L"]
[Black "Boyer, Jean-Francois"]
[Result "1-0"]
[ECO "D19"]
[WhiteElo "1954"]
[BlackElo "1742"]
[Annotator "ChessBase"]
[PlyCount "93"]
[EventDate "2024.07.03"]
[EventType "swiss"]
[EventCountry "SUI"]
[SourceTitle "playchess.com"]
[Source "ChessBase"]
[SourceQuality "1"]
[TimeControl "40/5400+30:1800+30"]

1. Nf3 {[%emt 0:00:07]} d5 {[%emt 0:00:42]} 2. d4 {[%emt 0:00:28]} Nf6 {[%emt 0:00:53]} 3. c4 {[%emt 0:00:27]} c6 {[%emt 0:00:24]} 4. Nc3 {[%emt 0:00:14]} dxc4 {[%emt 0:01:28]} 5. a4 {[%emt 0:00:16]} Bf5 {[%emt 0:00:37]} 6. e3 {[%emt 0:00:08]} e6 {[%emt 0:02:56]} 7. Bxc4 {[%emt 0:00:09]} Bb4 {[%emt 0:07:56]} 8. O-O {[%emt 0:01:21]} O-O {[%emt 0:02:07]} 9. Qe2 {[%emt 0:03:36]} Ne4 {[%emt 0:11:30]} 10. Na2 {[%emt 0:09:37]} Be7 {[%emt 0:04:18]} 11. h3 {[%emt 0:05:41]} h6 {[%emt 0:06:50]} 12. Rd1 {[%emt 0:03:25]} Nd7 {[%emt 0:03:46]} 13. Bd2 {[%emt 0:13:37]} Nxd2 {[%emt 0:06:33]} 14. Rxd2 {[%emt 0:00:53]} Be4 {[%emt 0:02:48]} 15. Nc3 {[%emt 0:01:21]} Bxf3 {[%emt 0:01:48]} 16. Qxf3 {[%emt 0:00:17]} Ne5 {[%emt 0:00:48]} 17. Qe2 {[%emt 0:00:48]} Nxc4 {[%emt 0:02:01]} 18. Qxc4 {[%emt 0:00:09]} Qa5 {[%emt 0:01:07]} 19. Rdd1 {[%emt 0:08:38]} Rac8 {[%emt 0:08:16]} 20. Rac1 {[%emt 0:05:46]} Bd6 {[%emt 0:02:31]} 21. Ne4 {[%emt 0:01:42]} Bb8 {[%emt 0:00:26]} 22. g3 {[%emt 0:04:16]} Qf5 {[%emt 0:01:39]} 23. Nc5 {[%emt 0:06:47]} Qxh3 {[%emt 0:06:48]} 24. Nxb7 {[%emt 0:00:41]} Bxg3 {[%emt 0:02:36]} 25. fxg3 {[%emt 0:00:12]} Qxg3+ {[%emt 0:00:10]} 26. Kf1 {[%emt 0:00:26]} Qf3+ {[%emt 0:00:45]} 27. Ke1 {[%emt 0:00:36]} Qxe3+ {[%emt 0:00:34]} 28. Qe2 {[%emt 0:04:50]} Qg1+ {[%emt 0:03:44]} 29. Qf1 {[%emt 0:10:41]} Qe3+ {[%emt 0:00:55]} 30. Qe2 {[%emt 0:00:32]} Qxe2+ {[%emt 0:00:38]} 31. Kxe2 {[%emt 0:00:11]} Rb8 {[%emt 0:00:09]} 32. Nd6 {[%emt 0:12:34]} Rxb2+ {[%emt 0:00:41]} 33. Kd3 {[%emt 0:02:29]} Rfb8 {[%emt 0:01:21]} 34. Rxc6 {[%emt 0:00:52]} R8b3+ {[%emt 0:01:34]} 35. Rc3 {[%emt 0:00:57]} Rxc3+ {[%emt 0:02:59]} 36. Kxc3 {[%emt 0:00:07]} Rb6 {[%emt 0:01:21]} 37. Nc4 {[%emt 0:00:30]} Rb7 {[%emt 0:01:11]} 38. a5 {[%emt 0:00:16]} g5 {[%emt 0:00:50]} 39. a6 {[%emt 0:03:02]} Rb8 {[%emt 0:01:34]} 40. d5 {[%emt 0:00:00]} exd5 {[%emt 0:00:00]} 41. Rxd5 {[%emt 0:00:40]} g4 {[%emt 0:06:18]} 42. Rd7 {[%emt 0:04:21]} Ra8 {[%emt 0:05:48]} 43. Kd4 {[%emt 0:05:16]} f5 {[%emt 0:07:02]} 44. Ne3 {[%emt 0:09:55]} Rf8 {[%emt 0:01:31]} 45. Rxa7 {[%emt 0:00:38]} g3 {[%emt 0:01:28]} 46. Rb7 {[%emt 0:01:43]} Rf6 {[%emt 0:17:31]} 47. a7 {[%emt 0:01:22]} 1-0

[Event "57th Biel Festival ATO 2024"]
[Site "Biel"]
[Date "2024.07.16"]
[Round "1.4"]
[White "Weihs, David"]
[Black "King, Alexander"]
[Result "0-1"]
[ECO "B12"]
[WhiteElo "1733"]
[BlackElo "1935"]
[Annotator "ChessBase"]
[PlyCount "106"]
[EventDate "2024.07.03"]
[EventType "swiss"]
[EventCountry "SUI"]
[SourceTitle "playchess.com"]
[Source "ChessBase"]
[SourceQuality "1"]
[TimeControl "40/5400+30:1800+30"]

1. e4 {[%emt 0:00:03]} c6 {[%emt 0:00:02]} 2. d4 {[%emt 0:00:05]} d5 {[%emt 0:00:03]} 3. f3 {[%emt 0:00:22]} dxe4 {[%emt 0:00:11]} 4. fxe4 {[%emt 0:00:32]} e5 {[%emt 0:00:04]} 5. Nf3 {[%emt 0:00:59]} Bg4 {[%emt 0:00:03]} 6. Bc4 {[%emt 0:06:53]} Nd7 {[%emt 0:00:01]} 7. c3 {[%emt 0:05:36]} Bd6 {[%emt 0:00:30]} 8. O-O {[%emt 0:02:14]} Ngf6 {[%emt 0:00:15]} 9. Bg5 {[%emt 0:04:04]} Qb6 {[%emt 0:10:54]} 10. Nbd2 {[%emt 0:06:17]} O-O {[%emt 0:02:07]} 11. Qb3 {[%emt 0:02:14]} Rae8 {[%emt 0:07:26]} 12. Qxb6 {[%emt 0:04:35]} axb6 {[%emt 0:01:29]} 13. Rae1 {[%emt 0:04:33]} Be6 {[%emt 0:09:19]} 14. Bxe6 {[%emt 0:04:56]} Rxe6 {[%emt 0:00:42]} 15. Nc4 {[%emt 0:01:22]} Bc7 {[%emt 0:05:45]} 16. Ncxe5 {[%emt 0:02:47]} Nxe5 {[%emt 0:00:28]} 17. Nxe5 {[%emt 0:00:37]} Bxe5 {[%emt 0:04:00]} 18. dxe5 {[%emt 0:01:48]} Nd7 {[%emt 0:01:24]} 19. Rd1 {[%emt 0:13:22]} Nxe5 {[%emt 0:06:45]} 20. Bf4 {[%emt 0:01:54]} Ng6 {[%emt 0:03:42]} 21. Bc7 {[%emt 0:01:31]} b5 {[%emt 0:03:05]} 22. Rd7 {[%emt 0:00:54]} f6 {[%emt 0:11:07]} 23. Rfd1 {[%emt 0:03:16]} Rfe8 {[%emt 0:07:16]} 24. Bd6 {[%emt 0:01:43]} Rxe4 {[%emt 0:03:37]} 25. Rxb7 {[%emt 0:03:40]} Re1+ {[%emt 0:00:54]} 26. Rxe1 {[%emt 0:02:05]} Rxe1+ {[%emt 0:00:01]} 27. Kf2 {[%emt 0:00:18]} Rd1 {[%emt 0:01:53]} 28. Ba3 {[%emt 0:02:52]} Ne5 {[%emt 0:00:50]} 29. Rb8+ {[%emt 0:03:43]} Kf7 {[%emt 0:00:03]} 30. Rb7+ {[%emt 0:00:09]} Kg6 {[%emt 0:00:45]} 31. Bf8 {[%emt 0:02:24]} Rd7 {[%emt 0:07:50]} 32. Rxd7 {[%emt 0:01:14]} Nxd7 {[%emt 0:00:02]} 33. Bd6 {[%emt 0:03:20]} Kf5 {[%emt 0:01:22]} 34. Kf3 {[%emt 0:02:10]} Nb6 {[%emt 0:03:19]} 35. Bf8 {[%emt 0:01:33]} g6 {[%emt 0:00:40]} 36. b3 {[%emt 0:02:20]} Ke5 {[%emt 0:04:47]} 37. Bc5 {[%emt 0:03:31]} Nd7 {[%emt 0:00:49]} 38. Bf2 {[%emt 0:01:26]} Kd5 {[%emt 0:01:05]} 39. a3 {[%emt 0:02:29]} Ne5+ {[%emt 0:01:49]} 40. Ke2 {[%emt 0:00:00]} c5 {[%emt 0:00:00]} 41. h3 {[%emt 0:10:08]} c4 {[%emt 0:04:26]} 42. b4 {[%emt 0:02:17]} Nd3 {[%emt 0:03:44]} 43. Bd4 {[%emt 0:01:39]} f5 {[%emt 0:00:47]} 44. Kf3 {[%emt 0:02:16]} Ne1+ {[%emt 0:02:26]} 45. Kf2 {[%emt 0:06:09]} Nc2 {[%emt 0:01:13]} 46. Bg7 {[%emt 0:01:40]} Nxa3 {[%emt 0:05:09]} 47. Ke3 {[%emt 0:01:31]} Nb1 {[%emt 0:02:27]} 48. g4 {[%emt 0:00:58]} fxg4 {[%emt 0:02:47]} 49. hxg4 {[%emt 0:00:12]} h5 {[%emt 0:02:06]} 50. gxh5 {[%emt 0:01:00]} gxh5 {[%emt 0:00:02]} 51. Kf4 {[%emt 0:03:37]} h4 {[%emt 0:02:21]} 52. Be5 {[%emt 0:00:13]} h3 {[%emt 0:00:19]} 53. Kf5 {[%emt 0:00:46]} Nxc3 {[%emt 0:00:43]} 0-1

[Event "57th Biel Festival ATO 2024"]
[Site "Biel"]
[Date "2024.07.16"]
[Round "1.5"]
[White "Schneuwly, Achim"]
[Black "Pavlov, Myroslav"]
[Result "1-0"]
[ECO "E90"]
[WhiteElo "1933"]
[BlackElo "1736"]
[Annotator "NA"]
[PlyCount "63"]
[EventDate "2024.07.03"]
[EventType "swiss"]
[EventCountry "SUI"]
[SourceTitle "playchess.com"]
[Source "ChessBase"]
[SourceQuality "1"]
[TimeControl "40/5400+30:1800+30"]

1. d4 {[%emt 0:00:05]} Nf6 {[%emt 0:00:03]} 2. Nf3 {[%emt 0:00:06]} g6 {[%emt 0:00:15]} 3. c4 {[%emt 0:01:00]} Bg7 {[%emt 0:00:05]} 4. Nc3 {[%emt 0:00:05]} d6 {[%emt 0:00:08]} 5. e4 {[%emt 0:00:24]} e5 {[%emt 0:00:24]} 6. dxe5 {[%emt 0:01:33]} dxe5 {[%emt 0:00:02]} 7. Qxd8+ {[%emt 0:00:08]} Kxd8 {[%emt 0:00:08]} 8. Bg5 {[%emt 0:09:13]} Nbd7 {[%emt 0:04:28]} 9. O-O-O {[%emt 0:00:46]} Re8 {[%emt 0:00:19]} 10. Nd5 {[%emt 0:39:24]} Re6 {[%emt 0:00:30]} 11. c5 {[%emt 0:05:03]} c6 {[%emt 0:01:02]} 12. Nxf6 {[%emt 0:00:10]} Bxf6 {[%emt 0:00:04]} 13. Be3 {[%emt 0:06:38]} Kc7 {[%emt 0:03:23]} 14. Bc4 {[%emt 0:00:15]} Re7 {[%emt 0:00:20]} 15. Rd6 {[%emt 0:04:12]} b6 {[%emt 0:10:08]} 16. Rhd1 {[%emt 0:07:49]} Bg7 {[%emt 0:08:37]} 17. b4 {[%emt 0:05:02]} a5 {[%emt 0:11:34]} 18. b5 {[%emt 0:02:02]} Bb7 {[%emt 0:09:51]} 19. bxc6 {[%emt 0:00:34]} Bxc6 {[%emt 0:04:00]} 20. Rxc6+ {[%emt 0:00:04]} Kxc6 {[%emt 0:05:42]} 21. Bd5+ {[%emt 0:00:48]} Kb5 {[%emt 0:01:10]} 22. Bxa8 {[%emt 0:00:10]} bxc5 {[%emt 0:01:03]} 23. a4+ {[%emt 0:01:25]} Kb4 {[%emt 0:03:54]} 24. Bc6 {[%emt 0:00:45]} Nb6 {[%emt 0:00:51]} 25. Kc2 {[%emt 0:00:31]} Nxa4 {[%emt 0:09:18]} 26. Rb1+ {[%emt 0:00:25]} Ka3 {[%emt 0:01:09]} 27. Bc1+ {[%emt 0:00:48]} Nb2 {[%emt 0:00:20]} 28. Bxb2+ {[%emt 0:00:08]} Kb4 {[%emt 0:00:09]} 29. Bc3+ {[%emt 0:00:24]} Ka3 {[%emt 0:00:16]} 30. Rb3+ {[%emt 0:00:37]} Ka2 {[%emt 0:00:05]} 31. Bb2 {[%emt 0:00:27]} Rb7 {[%emt 0:00:59]} 32. Ra3# {[%emt 0:00:08]} 1-0

[Event "57th Biel Festival ATO 2024"]
[Site "Biel"]
[Date "2024.07.16"]
[Round "1.6"]
[White "Suwendo, Poedjo"]
[Black "Andrzejewska, Anna"]
[Result "0-1"]
[ECO "C56"]
[WhiteElo "1727"]
[BlackElo "1933"]
[Annotator "RC"]
[PlyCount "120"]
[EventDate "2024.07.03"]
[EventType "swiss"]
[EventCountry "SUI"]
[SourceTitle "playchess.com"]
[Source "ChessBase"]
[SourceQuality "1"]
[TimeControl "40/5400+30:1800+30"]

1. e4 {[%emt 0:00:06]} e5 {[%emt 0:00:05]} 2. Nf3 {[%emt 0:00:21]} Nc6 {[%emt 0:00:04]} 3. d4 {[%emt 0:00:15]} exd4 {[%emt 0:00:11]} 4. Bc4 {[%emt 0:00:11]} Nf6 {[%emt 0:00:32]} 5. e5 {[%emt 0:00:23]} d5 {[%emt 0:00:42]} 6. Bb5 {[%emt 0:00:10]} Ne4 {[%emt 0:00:16]} 7. Nxd4 {[%emt 0:00:09]} Bd7 {[%emt 0:01:01]} 8. Bxc6 {[%emt 0:00:16]} bxc6 {[%emt 0:00:17]} 9. O-O {[%emt 0:00:20]} Bc5 {[%emt 0:00:57]} 10. c3 {[%emt 0:00:15]} Bb6 {[%emt 0:02:29]} 11. Be3 {[%emt 0:04:30]} O-O {[%emt 0:03:48]} 12. Qe2 {[%emt 0:03:58]} c5 {[%emt 0:02:36]} 13. Nc2 {[%emt 0:01:24]} Qe7 {[%emt 0:04:39]} 14. f3 {[%emt 0:00:22]} Ng5 {[%emt 0:00:52]} 15. Qd2 {[%emt 0:03:56]} Ne6 {[%emt 0:05:57]} 16. Qxd5 {[%emt 0:01:45]} Rad8 {[%emt 0:01:48]} 17. Qc4 {[%emt 0:01:12]} g6 {[%emt 0:05:43]} 18. Bh6 {[%emt 0:03:13]} Ng7 {[%emt 0:02:01]} 19. f4 {[%emt 0:00:14]} Bf5 {[%emt 0:01:22]} 20. Bg5 {[%emt 0:05:09]} Qd7 {[%emt 0:05:44]} 21. Ne1 {[%emt 0:04:48]} Rb8 {[%emt 0:04:05]} 22. Na3 {[%emt 0:01:13]} Be6 {[%emt 0:05:54]} 23. Qe2 {[%emt 0:04:14]} c4+ {[%emt 0:02:36]} 24. Kh1 {[%emt 0:00:22]} Nf5 {[%emt 0:06:01]} 25. Nac2 {[%emt 0:01:09]} Bd5 {[%emt 0:02:22]} 26. Nf3 {[%emt 0:00:32]} Bc5 {[%emt 0:05:19]} 27. Ncd4 {[%emt 0:01:43]} Rfe8 {[%emt 0:06:46]} 28. Rfd1 {[%emt 0:01:46]} c6 {[%emt 0:04:15]} 29. e6 {[%emt 0:07:10]} fxe6 {[%emt 0:01:16]} 30. Ne5 {[%emt 0:00:13]} Qg7 {[%emt 0:05:03]} 31. Nexc6 {[%emt 0:19:42]} Rbc8 {[%emt 0:04:54]} 32. Nxf5 {[%emt 0:00:36]} gxf5 {[%emt 0:04:12]} 33. Ne5 {[%emt 0:00:29]} Be7 {[%emt 0:02:59]} 34. Nf3 {[%emt 0:01:51]} h6 {[%emt 0:03:33]} 35. Bxe7 {[%emt 0:00:19]} Rxe7 {[%emt 0:00:42]} 36. Rd2 {[%emt 0:01:04]} Kh7 {[%emt 0:01:13]} 37. Re1 {[%emt 0:01:52]} Rb7 {[%emt 0:01:57]} 38. Qe5 {[%emt 0:07:31]} Qg4 {[%emt 0:02:32]} 39. h3 {[%emt 0:01:23]} Qh5 {[%emt 0:01:15]} 40. Kh2 {[%emt 0:00:00]} Rg8 {[%emt 0:00:00]} 41. Nd4 {[%emt 0:05:15]} Rbg7 {[%emt 0:14:41]} 42. Rg1 {[%emt 0:04:28]} Rg3 {[%emt 0:06:35]} 43. Nxf5 {[%emt 0:04:35]} Rd3 {[%emt 0:04:30]} 44. Rxd3 {[%emt 0:07:42]} cxd3 {[%emt 0:00:20]} 45. g4 {[%emt 0:08:45]} Qf7 {[%emt 0:02:06]} 46. Nd6 {[%emt 0:06:04]} Qc7 {[%emt 0:02:26]} 47. b3 {[%emt 0:03:13]} Rd8 {[%emt 0:01:23]} 48. Nc4 {[%emt 0:01:03]} Qc5 {[%emt 0:01:31]} 49. Qe3 {[%emt 0:00:25]} Qxe3 {[%emt 0:00:49]} 50. Nxe3 {[%emt 0:00:03]} Bf3 {[%emt 0:00:46]} 51. Kg3 {[%emt 0:00:38]} Be2 {[%emt 0:00:22]} 52. Kf2 {[%emt 0:00:15]} Rf8 {[%emt 0:00:35]} 53. f5 {[%emt 0:00:32]} exf5 {[%emt 0:00:11]} 54. gxf5 {[%emt 0:00:47]} Re8 {[%emt 0:01:19]} 55. c4 {[%emt 0:00:33]} Bh5 {[%emt 0:00:25]} 56. f6 {[%emt 0:03:07]} d2 {[%emt 0:01:32]} 57. Nd1 {[%emt 0:03:26]} Re2+ {[%emt 0:00:14]} 58. Kg3 {[%emt 0:02:49]} Re1 {[%emt 0:00:02]} 59. Kf2 {[%emt 0:00:24]} Rxg1 {[%emt 0:00:24]} 60. Kxg1 {[%emt 0:00:27]} Bxd1 {[%emt 0:00:05]} 0-1

[Event "57th Biel Festival ATO 2024"]
[Site "Biel"]
[Date "2024.07.16"]
[Round "1.7"]
[White "Conrad, Vincent"]
[Black "Schweizer, Ulrich"]
[Result "*"]
[ECO "E09"]
[WhiteElo "1931"]
[BlackElo "1727"]
[Annotator "RC"]
[PlyCount "25"]
[EventDate "2024.07.03"]
[EventType "swiss"]
[EventCountry "SUI"]
[SourceTitle "playchess.com"]
[Source "ChessBase"]
[SourceQuality "1"]
[TimeControl "40/5400+30:1800+30"]

1. Nf3 {[%emt 0:00:25]} d5 {[%emt 0:00:32]} 2. d4 {[%emt 0:00:10]} Nf6 {[%emt 0:00:19]} 3. c4 {[%emt 0:00:22]} e6 {[%emt 0:00:49]} 4. g3 {[%emt 0:00:15]} c6 {[%emt 0:01:10]} 5. Bg2 {[%emt 0:00:48]} Nbd7 {[%emt 0:00:37]} 6. Nbd2 {[%emt 0:04:52]} Be7 {[%emt 0:01:11]} 7. Qc2 {[%emt 0:00:13]} O-O {[%emt 0:01:15]} 8. O-O {[%emt 0:00:49]} b6 {[%emt 0:00:38]} 9. e4 {[%emt 0:09:39]} dxe4 {[%emt 0:09:46]} 10. Nxe4 {[%emt 0:00:12]} Bb7 {[%emt 0:12:11]} 11. Ne5 {[%emt 0:22:52]} Rc8 {[%emt 0:07:42]} 12. Rd1 {[%emt 0:06:07]} Nh5 {[%emt 0:28:27]} 13. Bh3 {[%emt 0:31:50]} *

[Event "57th Biel Festival ATO 2024"]
[Site "Biel"]
[Date "2024.07.16"]
[Round "1.7"]
[White "Conrad, Vincent"]
[Black "Schweizer, Ulrich"]
[Result "1-0"]
[ECO "E09"]
[WhiteElo "1931"]
[BlackElo "1727"]
[Annotator "RC"]
[PlyCount "78"]
[EventDate "2024.07.03"]
[EventType "swiss"]
[EventCountry "SUI"]
[SourceTitle "playchess.com"]
[Source "ChessBase"]
[SourceQuality "1"]
[TimeControl "40/5400+30:1800+30"]

1. Nf3 {[%emt 0:00:25]} d5 {[%emt 0:00:32]} 2. d4 {[%emt 0:00:10]} Nf6 {[%emt 0:00:19]} 3. c4 {[%emt 0:00:22]} e6 {[%emt 0:00:49]} 4. g3 {[%emt 0:00:15]} c6 {[%emt 0:01:10]} 5. Bg2 {[%emt 0:00:48]} Nbd7 {[%emt 0:00:37]} 6. Nbd2 {[%emt 0:04:52]} Be7 {[%emt 0:01:11]} 7. Qc2 {[%emt 0:00:13]} O-O {[%emt 0:01:15]} 8. O-O {[%emt 0:00:49]} b6 {[%emt 0:00:38]} 9. e4 {[%emt 0:09:39]} dxe4 {[%emt 0:09:46]} 10. Nxe4 {[%emt 0:00:12]} Bb7 {[%emt 0:12:11]} 11. Ne5 {[%emt 0:22:52]} Rc8 {[%emt 0:07:42]} 12. Rd1 {[%emt 0:06:07]} Nxe4 {[%emt 0:28:27]} 13. Bxe4 {[%emt 0:31:50]} Nf6 {[%emt 0:32:23]} 14. Bg2 {[%emt 0:18:56]} a6 {[%emt 0:00:30]} 15. Bf4 {[%emt 0:00:30]} Nh5 {[%emt 0:00:30]} 16. c5 {[%emt 0:00:30]} Nxf4 {[%emt 0:00:30]} 17. gxf4 {[%emt 0:00:30]} f6 {[%emt 0:00:30]} 18. Nc4 {[%emt 0:00:30]} b5 {[%emt 0:00:30]} 19. Ne3 {[%emt 0:00:30]} Qc7 {[%emt 0:00:30]} 20. Qe4 {[%emt 0:00:30]} Qd7 {[%emt 0:00:30]} 21. Bh3 {[%emt 0:00:30]} f5 {[%emt 0:00:30]} 22. Qc2 {[%emt 0:00:30]} Bf6 {[%emt 0:00:30]} 23. Qb3 {[%emt 0:00:30]} Qf7 {[%emt 0:00:30]} 24. Nf1 {[%emt 0:00:30]} Rcd8 {[%emt 0:00:30]} 25. Ng3 {[%emt 0:00:30]} Rxd4 {[%emt 0:00:30]} 26. Rxd4 {[%emt 0:00:30]} Bxd4 {[%emt 0:00:30]} 27. Rc1 {[%emt 0:00:30]} Bf6 {[%emt 0:00:30]} 28. Re1 {[%emt 0:00:30]} Re8 {[%emt 0:00:30]} 29. Bxf5 {[%emt 0:00:30]} Bc8 {[%emt 0:00:30]} 30. Bh3 {[%emt 0:00:30]} Rf8 {[%emt 0:00:30]} 31. Ne4 {[%emt 0:00:30]} Bh4 {[%emt 0:00:30]} 32. Qf3 {[%emt 0:00:30]} e5 {[%emt 0:00:30]} 33. Bxc8 {[%emt 0:00:30]} Rxc8 {[%emt 0:00:30]} 34. Nd6 {[%emt 0:00:30]} Qg6+ {[%emt 0:00:30]} 35. Kh1 {[%emt 0:00:30]} e4 {[%emt 0:00:30]} 36. Qh3 {[%emt 0:00:30]} Rc7 {[%emt 0:00:30]} 37. Qxh4 {[%emt 0:00:30]} Rd7 {[%emt 0:00:30]} 38. Qg3 {[%emt 0:00:30]} Qf6 {[%emt 0:00:30]} 39. Re2 {[%emt 0:00:30]} Qd4 {[%emt 0:00:30]} 1-0

[Event "57th Biel Festival ATO 2024"]
[Site "Biel"]
[Date "2024.07.16"]
[Round "1.8"]
[White "Lesniak, Julien"]
[Black "Bangerter, Daria"]
[Result "1/2-1/2"]
[ECO "B34"]
[WhiteElo "1728"]
[BlackElo "1931"]
[Annotator "NA RC"]
[PlyCount "63"]
[EventDate "2024.07.03"]
[EventType "swiss"]
[EventCountry "SUI"]
[SourceTitle "playchess.com"]
[Source "ChessBase"]
[SourceQuality "1"]
[TimeControl "40/5400+30:1800+30"]

1. e4 {[%emt 0:00:04]} c5 {[%emt 0:00:24]} 2. Nf3 {[%emt 0:00:54]} g6 {[%emt 0:00:09]} 3. d4 {[%emt 0:03:49]} cxd4 {[%emt 0:00:05]} 4. Nxd4 {[%emt 0:00:27]} Nc6 {[%emt 0:00:23]} 5. Nxc6 {[%emt 0:02:30]} bxc6 {[%emt 0:00:48]} 6. Qd4 {[%emt 0:01:12]} Nf6 {[%emt 0:02:07]} 7. e5 {[%emt 0:03:23]} Nd5 {[%emt 0:11:02]} 8. e6 {[%emt 0:02:31]} Nf6 {[%emt 0:03:19]} 9. exd7+ {[%emt 0:04:44]} Bxd7 {[%emt 0:03:14]} 10. Bc4 {[%emt 0:02:27]} Bg7 {[%emt 0:01:34]} 11. O-O {[%emt 0:05:26]} O-O {[%emt 0:02:55]} 12. Qh4 {[%emt 0:03:39]} Bf5 {[%emt 0:06:14]} 13. c3 {[%emt 0:01:37]} Ng4 {[%emt 0:03:49]} 14. h3 {[%emt 0:03:40]} Ne5 {[%emt 0:05:48]} 15. Be2 {[%emt 0:03:12]} Re8 {[%emt 0:17:17]} 16. Be3 {[%emt 0:05:10]} Rb8 {[%emt 0:04:41]} 17. b3 {[%emt 0:03:02]} Qa5 {[%emt 0:03:17]} 18. b4 {[%emt 0:03:52]} Qc7 {[%emt 0:04:23]} 19. Na3 {[%emt 0:09:40]} Nd3 {[%emt 0:04:39]} 20. Qc4 {[%emt 0:02:43]} Red8 {[%emt 0:07:50]} 21. Qb3 {[%emt 0:05:30]} c5 {[%emt 0:04:22]} 22. Rad1 {[%emt 0:06:26]} cxb4 {[%emt 0:02:11]} 23. cxb4 {[%emt 0:00:52]} Rxb4 {[%emt 0:02:40]} 24. Qc2 {[%emt 0:02:25]} Qxc2 {[%emt 0:02:32]} 25. Nxc2 {[%emt 0:00:07]} Rb2 {[%emt 0:01:24]} 26. Bxd3 {[%emt 0:01:00]} Rxd3 {[%emt 0:02:16]} 27. Nd4 {[%emt 0:02:29]} Bxd4 {[%emt 0:03:03]} 28. Bxd4 {[%emt 0:01:20]} Rxa2 {[%emt 0:01:04]} 29. Rxd3 {[%emt 0:00:16]} Bxd3 {[%emt 0:00:06]} 30. Rc1 {[%emt 0:00:07]} f6 {[%emt 0:01:04]} 31. Rc7 {[%emt 0:00:21]} Kf7 {[%emt 0:00:43]} 32. Rxa7 {[%emt 0:00:17]} 1/2-1/2